bitfinex/quotes_ETHUSD_20230103
["timestamp","ask_amount","ask_price","bid_price","bid_amount"]
[1672739448647,3.692269,1219.4,1219.3,46.70193089]
[1672739449223,3.07259575,1219.4,1219.3,46.70193089]
[1672739449818,8.07259575,1219.4,1219.3,46.70193089]
[1672739451864,8.07259575,1219.4,1219.3,46.69922373]
[1672739453874,5.0,1219.4,1219.3,46.69922373]
[1672739456802,8.68858966,1219.4,1219.3,46.69922373]
[1672739457225,3.692269,1219.4,1219.3,46.69922373]
[1672739458280,8.692269,1219.4,1219.3,46.69922373]
[1672739460285,5.0,1219.4,1219.3,50.84808487]
[1672739460881,8.692269,1219.4,1219.3,50.84808487]
[1672739462581,8.692269,1219.4,1219.3,51.26240992]
[1672739462898,8.692269,1219.4,1219.3,50.84808487]
[1672739464419,3.692269,1219.4,1219.3,50.84808487]
[1672739465343,8.692269,1219.4,1219.3,50.84808487]
[1672739469464,9.3069148,1219.4,1219.3,50.84808487]
[1672739469671,5.0,1219.4,1219.3,50.84808487]
[1672739469886,5.002,1219.4,1219.3,40.13566925]
[1672739470216,9.3069148,1219.4,1219.3,38.1119444]
[1672739470595,5.0,1219.4,1219.3,38.1119444]
[1672739470941,9.3069148,1219.4,1219.3,38.516673]
[1672739471122,9.3069148,1219.4,1219.3,48.5330448]
[1672739471339,8.69354728,1219.4,1219.3,60.4017548]
[1672739471916,8.69354728,1219.4,1219.3,59.9970262]
[1672739474223,5.0,1219.4,1219.3,59.9970262]
[1672739475497,8.07719078,1219.4,1219.3,60.2270262]
[1672739477212,8.07719078,1219.4,1219.3,60.22318712]
[1672739481757,3.07719078,1219.4,1219.3,60.22318712]
[1672739481962,4.46188493,1219.5,1219.4,35.0227]
[1672739482214,4.39588493,1219.5,1219.4,51.84162225]
[1672739482755,0.70233765,1219.5,1219.4,51.84162225]
[1672739483757,5.70233765,1219.5,1219.4,51.84162225]
[1672739483972,5.70233765,1219.5,1219.4,51.79162225]
[1672739488379,0.066,1219.6,1219.4,59.59785363]
[1672739488589,3.75954728,1219.8,1219.5,9.17186114]
[1672739488853,3.69354728,1219.8,1219.7,35.01544]
[1672739489178,3.69354728,1219.8,1219.7,35.1022544]
[1672739490118,3.69354728,1219.8,1219.7,38.1022544]
[1672739490431,5.0,1219.8,1219.7,35.1022544]
[1672739490599,8.68856127,1219.8,1219.7,35.1022544]
[1672739490815,8.68839214,1219.8,1219.7,35.1022544]
[1672739491379,8.63103155,1219.8,1219.7,35.1022544]
[1672739492703,8.63014296,1219.8,1219.7,35.1022544]
[1672739492921,8.6299757,1219.8,1219.7,35.1022544]
[1672739493264,4.94463941,1219.8,1219.7,29.6022544]
[1672739493488,9.25155421,1219.8,1219.7,29.60168641]
[1672739493631,9.25155421,1219.8,1219.7,29.6022544]
[1672739495423,8.62929887,1219.8,1219.7,29.6022544]
[1672739495998,4.94463941,1219.8,1219.7,29.6022544]
[1672739496158,4.94263941,1219.8,1219.7,29.6022544]
[1672739496368,9.24955421,1219.8,1219.7,29.6022544]
[1672739496612,9.25155421,1219.8,1219.7,29.6022544]
[1672739496834,9.25155421,1219.8,1219.7,30.02031628]
[1672739497671,9.25155421,1219.8,1219.7,29.6022544]
[1672739505953,4.3089148,1219.8,1219.7,29.6022544]
[1672739506178,4.3729148,1219.9,1219.7,29.6022544]
[1672739506390,9.3069148,1219.8,1219.7,29.6022544]
[1672739506562,9.3089148,1219.8,1219.7,29.6022544]
[1672739511080,9.3089148,1219.8,1219.7,33.54640884]
[1672739511452,8.68993702,1219.8,1219.7,37.69526998]
[1672739511813,5.002,1219.8,1219.7,37.69526998]
[1672739512880,8.6897506,1219.8,1219.7,37.69526998]
[1672739513069,8.69021577,1219.8,1219.7,37.69526998]
[1672739513829,8.69021577,1219.8,1219.7,8.17982998]
[1672739514185,8.69021577,1219.8,1219.7,33.75111554]
[1672739515248,8.69034095,1219.8,1219.7,33.75111554]
[1672739515555,8.69034095,1219.8,1219.7,33.74822659]
[1672739515724,8.69034095,1219.8,1219.7,35.58812922]
[1672739520239,3.69034095,1219.8,1219.7,35.58812922]
[1672739520452,3.68834095,1219.8,1219.7,40.33337114]
[1672739521184,8.68834095,1219.8,1219.7,40.33337114]
[1672739521411,8.69034095,1219.8,1219.7,40.33337114]
[1672739521648,9.3089148,1219.8,1219.7,40.33337114]
[1672739525533,5.002,1219.8,1219.7,40.33337114]
[1672739525850,8.69191945,1219.8,1219.7,40.33337114]
[1672739526439,8.69180136,1219.8,1219.7,40.33337114]
[1672739526652,8.69177423,1219.8,1219.7,40.33337114]
[1672739527050,9.3089148,1219.8,1219.7,40.33337114]
[1672739533181,9.3109148,1219.8,1219.7,40.33280315]
[1672739533403,9.3109148,1219.8,1219.7,40.33337114]
[1672739533404,9.3089148,1219.8,1219.7,40.33337114]
[1672739534388,5.002,1219.8,1219.7,40.33337114]
[1672739534984,9.3089148,1219.8,1219.7,40.33337114]
[1672739535426,4.3089148,1219.8,1219.7,40.33337114]
[1672739535635,4.3069148,1219.8,1219.7,40.33337114]
[1672739536514,9.3069148,1219.8,1219.7,40.33337114]
[1672739536688,9.3089148,1219.8,1219.7,40.33337114]
[1672739537526,9.3089148,1219.8,1219.7,40.33076177]
[1672739538538,9.3089148,1219.8,1219.7,36.18190063]
[1672739538799,9.3089148,1219.8,1219.7,31.43665871]
[1672739540008,9.3089148,1219.8,1219.7,31.85470343]
[1672739542472,4.3089148,1219.8,1219.7,31.85470343]
[1672739542685,4.3069148,1219.8,1219.7,31.85470343]
[1672739543266,9.3069148,1219.8,1219.7,31.85470343]
[1672739543473,9.3089148,1219.8,1219.7,36.22660277]
[1672739544136,9.3109148,1219.8,1219.7,35.80799006]
[1672739544318,9.3089148,1219.8,1219.7,35.80855805]
[1672739547352,9.3089148,1219.8,1219.7,39.95741919]
[1672739549113,9.3089148,1219.8,1219.7,40.3604199]
[1672739551266,9.3089148,1219.8,1219.7,39.95741919]
[1672739554912,4.3089148,1219.8,1219.7,39.95741919]
[1672739555118,4.3069148,1219.8,1219.7,39.95741919]
[1672739555838,9.3069148,1219.8,1219.7,39.95741919]
[1672739556049,9.3089148,1219.8,1219.7,39.95741919]
[1672739557414,9.3089148,1219.8,1219.7,40.35771238]
[1672739558218,9.3089148,1219.8,1219.7,39.95741919]
[1672739558522,9.3065685,1219.8,1219.7,39.95741919]
[1672739561888,4.3065685,1219.8,1219.7,39.95741919]
[1672739562100,4.3045685,1219.8,1219.7,39.95741919]
[1672739563067,9.3045685,1219.8,1219.7,39.95741919]
[1672739563318,9.3065685,1219.8,1219.7,39.95741919]
[1672739563805,5.002,1219.8,1219.7,31.43665871]
[1672739564168,10.08924039,1219.8,1219.7,31.43665871]
[1672739564379,5.002,1219.8,1219.7,31.43665871]
[1672739566164,9.30983033,1219.8,1219.7,31.43665871]
[1672739570260,4.30983033,1219.8,1219.7,31.43665871]
[1672739570471,4.30783033,1219.8,1219.7,31.43665871]
[1672739571478,9.30783033,1219.8,1219.7,31.43665871]
[1672739571818,9.30983033,1219.8,1219.7,31.43665871]
[1672739577473,4.30983033,1219.8,1219.7,31.43665871]
[1672739577778,4.30783033,1219.8,1219.7,33.70366993]
[1672739578354,9.30783033,1219.8,1219.7,33.70366993]
[1672739578564,9.30983033,1219.8,1219.7,33.70366993]
[1672739580197,9.30983033,1219.8,1219.7,34.10491311]
[1672739580565,9.30983033,1219.8,1219.7,33.70366993]
[1672739583185,9.30983033,1219.8,1219.7,31.43270064]
[1672739584507,4.30983033,1219.8,1219.7,31.43270064]
[1672739584726,4.30783033,1219.8,1219.7,31.43270064]
[1672739585340,9.30783033,1219.8,1219.7,31.43270064]
[1672739585516,9.30983033,1219.8,1219.7,31.43270064]
[1672739591321,4.30983033,1219.8,1219.7,31.43270064]
[1672739591528,5.15324039,1219.9,1219.7,31.43270064]
[1672739591736,4.30766622,1219.8,1219.7,31.43270064]
[1672739592372,9.30766622,1219.8,1219.7,31.43270064]
[1672739592586,9.30966622,1219.8,1219.7,31.43270064]
[1672739593884,14.39690661,1219.8,1219.7,31.43270064]
[1672739594098,10.08924039,1219.8,1219.7,31.43270064]
[1672739594464,5.002,1219.8,1219.7,31.43270064]
[1672739598414,0.002,1219.8,1219.7,31.43270064]
[1672739598588,5.08924039,1219.9,1219.7,31.43270064]
[1672739599483,5.0,1219.8,1219.7,31.43270064]
[1672739599696,5.002,1219.8,1219.7,31.43270064]
[1672739600042,9.30944876,1219.8,1219.7,31.43270064]
[1672739604408,9.30944876,1219.8,1219.7,31.43034644]
[1672739604991,5.002,1219.8,1219.7,31.43034644]
[1672739605410,4.31018291,1219.8,1219.7,31.43034644]
[1672739605620,4.30818291,1219.8,1219.7,31.43034644]
[1672739606477,9.30818291,1219.8,1219.7,31.43034644]
[1672739606833,9.31018291,1219.8,1219.7,31.43034644]
[1672739612621,4.31018291,1219.8,1219.7,31.43034644]
[1672739612831,4.30818291,1219.8,1219.7,31.43034644]
[1672739613627,9.30818291,1219.8,1219.7,31.43034644]
[1672739613863,9.31018291,1219.8,1219.7,31.43034644]
[1672739615309,5.002,1219.8,1219.7,31.43034644]
[1672739617518,9.30979197,1219.8,1219.7,31.43034644]
[1672739621758,9.30979197,1219.8,1219.7,39.90687122]
[1672739626490,9.30979197,1219.8,1219.7,39.9180882]
[1672739628543,9.30745114,1219.8,1219.7,39.9180882]
[1672739632500,4.30979197,1219.8,1219.7,39.9180882]
[1672739632830,4.30779197,1219.8,1219.7,39.9180882]
[1672739633038,9.30779197,1219.8,1219.7,39.9180882]
[1672739633375,9.30979197,1219.8,1219.7,39.9180882]
[1672739634665,9.30979197,1219.8,1219.7,35.59042456]
[1672739636534,9.30979197,1219.8,1219.7,35.99080997]
[1672739636952,9.30979197,1219.8,1219.7,35.59042456]
[1672739639079,4.30979197,1219.8,1219.7,35.59042456]
[1672739639308,4.30779197,1219.8,1219.7,35.59042456]
[1672739640119,9.30779197,1219.8,1219.7,35.59042456]
[1672739640440,9.30979197,1219.8,1219.7,35.59042456]
[1672739640650,9.30979197,1219.8,1219.7,31.44156342]
[1672739641073,9.30979197,1219.8,1219.7,35.59042456]
[1672739647945,4.30979197,1219.8,1219.7,35.59042456]
[1672739648175,4.30779197,1219.8,1219.7,35.59042456]
[1672739649001,9.30779197,1219.8,1219.7,35.59042456]
[1672739649208,9.30979197,1219.8,1219.7,35.59042456]
[1672739650363,9.30979197,1219.8,1219.7,35.59041223]
[1672739654737,8.69469926,1219.8,1219.7,38.17694182]
[1672739654927,8.69469926,1219.8,1219.7,41.17694182]
[1672739655140,5.002,1219.8,1219.7,41.17694182]
[1672739655402,5.002,1219.8,1219.7,41.59604575]
[1672739655572,8.69437345,1219.8,1219.7,41.59604575]
[1672739655786,8.69437511,1219.8,1219.7,41.59604575]
[1672739655983,8.69438458,1219.8,1219.7,41.59604575]
[1672739656193,8.69438487,1219.8,1219.7,41.59604575]
[1672739656403,5.002,1219.8,1219.7,41.17694182]
[1672739657697,8.69457674,1219.8,1219.7,41.17694182]
[1672739662519,3.69457674,1219.8,1219.7,41.17694182]
[1672739662744,3.69257674,1219.8,1219.7,41.17694182]
[1672739663081,5.0,1219.8,1219.7,41.17694182]
[1672739663288,5.002,1219.8,1219.7,41.17694182]
[1672739664113,8.69407114,1219.8,1219.7,41.17694182]
[1672739668973,3.69407114,1219.8,1219.7,41.17694182]
[1672739669191,3.69207114,1219.8,1219.7,41.17694182]
[1672739669334,3.69207114,1219.8,1219.7,43.19894182]
[1672739669883,8.69207114,1219.8,1219.7,43.19894182]
[1672739670084,8.69407114,1219.8,1219.7,43.19894182]
[1672739671334,8.69407114,1219.8,1219.7,43.1967343]
[1672739673413,8.69407114,1219.8,1219.7,40.61020471]
[1672739673738,5.002,1219.8,1219.7,40.61020471]
[1672739674099,5.002,1219.8,1219.7,38.58820471]
[1672739674896,9.30979197,1219.8,1219.7,38.58820471]
[1672739676657,9.31179197,1219.8,1219.7,34.43877558]
[1672739677263,9.30979197,1219.8,1219.7,34.43934357]
[1672739680202,5.002,1219.8,1219.7,34.43934357]
[1672739680731,9.30979197,1219.8,1219.7,34.43934357]
[1672739683142,4.30979197,1219.8,1219.7,34.43934357]
[1672739683353,4.30779197,1219.8,1219.7,34.43934357]
[1672739684250,9.30779197,1219.8,1219.7,34.43934357]
[1672739684563,9.30979197,1219.8,1219.7,34.43934357]
[1672739686712,13.00183629,1219.8,1219.7,34.43934357]
[1672739686982,5.002,1219.8,1219.7,34.43934357]
[1672739687174,9.30979197,1219.8,1219.7,34.43934357]
[1672739690719,8.69406614,1219.8,1219.7,34.43934357]
[1672739692038,8.69406614,1219.8,1219.7,34.43727384]
[1672739693137,5.002,1219.8,1219.7,34.43727384]
[1672739694020,9.30979197,1219.8,1219.7,34.43727384]
[1672739696350,4.30979197,1219.8,1219.7,34.43727384]
[1672739696498,4.30779197,1219.8,1219.7,34.43727384]
[1672739697621,5.0,1219.8,1219.7,34.43727384]
[1672739697771,5.002,1219.8,1219.7,34.43727384]
[1672739698382,9.30979197,1219.8,1219.7,34.43727384]
[1672739698593,5.002,1219.8,1219.7,34.43727384]
[1672739700377,5.002,1219.8,1219.7,39.06738922]
[1672739700582,8.69421873,1219.8,1219.7,39.06738922]
[1672739701092,13.0020107,1219.8,1219.7,39.06738922]
[1672739702672,8.69421873,1219.8,1219.7,39.06738922]
[1672739703559,3.69421873,1219.8,1219.7,39.06738922]
[1672739703743,3.69221873,1219.8,1219.7,39.06738922]
[1672739704434,8.69221873,1219.8,1219.7,39.06738922]
[1672739704595,8.69421873,1219.8,1219.7,39.06738922]
[1672739705208,13.0020107,1219.8,1219.7,39.06738922]
[1672739706442,8.69421873,1219.8,1219.7,39.06738922]
[1672739707438,12.38667565,1219.8,1219.7,39.06738922]
[1672739710273,7.38667565,1219.8,1219.7,39.06738922]
[1672739710822,12.38667565,1219.8,1219.7,39.06738922]
[1672739712066,12.38667565,1219.8,1219.7,43.21625036]
[1672739712487,12.38667565,1219.8,1219.7,43.21322582]
[1672739718113,11.76981808,1219.8,1219.7,43.21322582]
[1672739718953,3.75845692,1219.9,1219.8,5.5]
[1672739719164,3.69245692,1219.9,1219.8,47.89113852]
[1672739719838,3.68862066,1219.9,1219.8,49.60698127]
[1672739720909,8.68862066,1219.9,1219.8,49.60698127]
[1672739722397,5.0,1219.9,1219.8,49.60698127]
[1672739722608,5.0,1219.9,1219.8,55.16305463]
[1672739722818,5.0,1219.9,1219.8,57.18805463]
[1672739723037,5.0,1219.9,1219.8,51.63198127]
[1672739725962,8.07286129,1219.9,1219.8,51.63198127]
[1672739726406,3.07286129,1219.9,1219.8,51.63198127]
[1672739727241,3.75843355,1220.0,1219.8,51.63198127]
[1672739727429,0.005,1220.0,1219.9,3.0]
[1672739727640,5.005,1220.0,1219.9,37.97380813]
[1672739727850,5.007,1220.0,1219.9,38.0527148]
[1672739730401,0.007,1220.0,1219.9,38.0527148]
[1672739730703,0.005,1220.0,1219.9,38.0527148]
[1672739731324,5.005,1220.0,1219.9,38.0527148]
[1672739731534,5.007,1220.0,1219.9,38.0527148]
[1672739734294,8.07790894,1220.0,1219.9,38.0527148]
[1672739735437,8.69443355,1220.0,1219.9,32.58951667]
[1672739738836,5.007,1220.0,1219.9,32.58951667]
[1672739739860,8.69313972,1220.0,1219.9,32.58951667]
[1672739747330,5.69313972,1220.0,1219.9,32.58951667]
[1672739747677,5.69313972,1220.0,1219.9,38.22635597]
[1672739752339,5.69313972,1220.0,1219.9,32.58951667]
[1672739753458,5.69313972,1220.0,1219.9,32.99519563]
[1672739756660,5.69313972,1220.0,1219.9,32.58951667]
[1672739758490,0.69313972,1220.0,1219.9,32.58951667]
[1672739758958,5.69313972,1220.0,1219.9,32.58951667]
[1672739759353,5.69313972,1220.0,1219.9,39.1700088]
[1672739764977,0.69313972,1220.0,1219.9,39.1700088]
[1672739765991,5.69313972,1220.0,1219.9,39.1700088]
[1672739769743,5.0,1220.0,1219.9,39.1700088]
[1672739770187,9.30779197,1220.0,1219.9,39.1700088]
[1672739771077,9.30779197,1220.0,1219.9,39.16665226]
[1672739771441,5.0,1220.0,1219.9,39.16665226]
[1672739771650,8.6903984,1220.0,1219.9,39.16665226]
[1672739771972,3.6903984,1220.0,1219.9,39.16665226]
[1672739773123,8.6903984,1220.0,1219.9,39.16665226]
[1672739773490,12.380927,1220.0,1219.9,39.16665226]
[1672739773946,12.99819037,1220.0,1219.9,39.16665226]
[1672739774383,8.6903984,1220.0,1219.9,39.16665226]
[1672739774547,12.38104261,1220.0,1219.9,39.16665226]
[1672739776008,12.38104261,1220.0,1219.9,43.3155134]
[1672739776484,12.99819037,1220.0,1219.9,43.3155134]
[1672739777286,12.99819037,1220.0,1219.9,32.58616013]
[1672739781422,8.6903984,1220.0,1219.9,32.58616013]
[1672739781753,12.99819037,1220.0,1219.9,32.58616013]
[1672739782557,8.6903984,1220.0,1219.9,32.58616013]
[1672739782775,12.99819037,1220.0,1219.9,32.58616013]
[1672739782987,12.99819037,1220.0,1219.9,35.27690844]
[1672739784084,8.6903984,1220.0,1219.9,35.27690844]
[1672739785609,12.99819037,1220.0,1219.9,35.27690844]
[1672739789691,12.38125965,1220.0,1219.9,35.27690844]
[1672739790090,12.38125965,1220.0,1219.9,41.43276958]
[1672739790257,5.00781965,1220.0,1219.9,41.43276958]
[1672739790473,4.50783355,1220.1,1219.9,49.26694626]
[1672739790724,4.50783355,1220.1,1220.0,7.525]
[1672739790725,4.44004101,1220.1,1220.0,7.525]
[1672739791051,5.05876427,1220.1,1220.0,37.30516363]
[1672739791520,0.7509723,1220.1,1220.0,37.30516363]
[1672739791941,4.44023676,1220.1,1220.0,37.30516363]
[1672739792397,4.44020621,1220.1,1220.0,37.30516363]
[1672739792574,5.7509723,1220.1,1220.0,32.58708667]
[1672739793135,5.7509723,1220.1,1220.0,29.58708667]
[1672739793136,10.05665389,1220.1,1220.0,29.58708667]
[1672739793412,10.83610231,1220.1,1220.0,19.75102667]
[1672739793582,25.48616364,1220.1,1220.0,0.07890667]
[1672739793770,24.99236161,1220.1,1219.9,3.0]
[1672739793984,5.08521814,1220.0,1219.8,11.63192942]
[1672739794314,4.30498922,1219.9,1219.8,31.30691942]
[1672739795102,4.30498922,1219.9,1219.8,24.46924942]
[1672739795307,4.30498922,1219.9,1219.8,4.79474942]
[1672739795632,9.30498922,1219.9,1219.8,24.39118275]
[1672739795879,9.30498922,1219.9,1219.8,24.47008942]
[1672739796992,9.30498922,1219.9,1219.8,34.30775942]
[1672739798464,5.0,1219.9,1219.8,34.30775942]
[1672739800267,8.6866348,1219.9,1219.8,34.30775942]
[1672739801743,8.6866348,1219.9,1219.8,39.08618874]
[1672739805771,8.6866348,1219.9,1219.8,43.23504988]
[1672739806509,8.6866348,1219.9,1219.8,39.08618874]
[1672739809981,3.6866348,1219.9,1219.8,39.08618874]
[1672739811095,8.6866348,1219.9,1219.8,39.08618874]
[1672739813827,8.6866348,1219.9,1219.8,39.08392358]
[1672739818984,8.68455212,1219.9,1219.8,39.08392358]
[1672739824923,8.68455212,1219.9,1219.8,34.30549426]
[1672739825072,9.30498922,1219.9,1219.8,34.30549426]
[1672739833843,5.0,1219.9,1219.8,34.30549426]
[1672739834942,5.15121814,1220.0,1219.8,34.30549426]
[1672739835248,5.08521814,1220.0,1219.9,12.83687]
[1672739835475,5.08521814,1220.0,1219.9,12.91577667]
[1672739835842,5.08521814,1220.0,1219.9,14.52777982]
[1672739836083,10.08521814,1220.0,1219.9,14.52777982]
[1672739836677,12.33845009,1220.0,1219.9,4.69090982]
[1672739836915,12.33845009,1220.0,1219.9,4.61200315]
[1672739837134,12.33845009,1220.0,1219.9,14.44887315]
[1672739837297,12.33845009,1220.0,1219.9,14.52777982]
[1672739838658,10.08521814,1220.0,1219.9,14.52777982]
[1672739840653,10.08521814,1220.0,1219.9,14.52480479]
[1672739842037,5.08521814,1220.0,1219.9,24.36167479]
[1672739843184,10.08521814,1220.0,1219.9,24.36167479]
[1672739845336,10.08521814,1220.0,1219.9,14.52480479]
[1672739845651,5.0,1220.0,1219.9,14.52480479]
[1672739845864,13.00620141,1220.0,1219.9,1.69090982]
[1672739846074,13.00620141,1220.0,1219.9,1.61200315]
[1672739846388,7.51736195,1220.0,1219.9,1.61200315]
[1672739846617,5.0,1220.0,1219.9,1.61200315]
[1672739846771,11.10423286,1220.0,1219.9,1.61200315]
[1672739846960,11.10423508,1220.0,1219.9,1.61200315]
[1672739847176,9.14886114,1220.0,1219.9,1.61200315]
[1672739847604,15.25079172,1220.0,1219.9,1.61200315]
[1672739848221,17.12142708,1220.0,1219.9,1.61200315]
[1672739849325,19.13142708,1220.0,1219.9,1.61200315]
[1672739851175,19.13142708,1220.0,1219.9,11.44887315]
[1672739851388,19.13142708,1220.0,1219.9,1.69090982]
[1672739851577,19.13142708,1220.0,1219.9,1.61200315]
[1672739855158,14.98256594,1220.0,1219.9,11.44887315]
[1672739855403,14.98256594,1220.0,1219.9,11.52777982]
[1672739855963,8.88063536,1220.0,1219.9,11.52777982]
[1672739856124,13.11193058,1220.0,1219.9,11.52777982]
[1672739856728,13.11193058,1220.0,1219.9,1.69090982]
[1672739856845,13.11193058,1220.0,1219.9,1.61200315]
[1672739859397,11.10193058,1220.0,1219.9,1.61200315]
[1672739862043,11.10193058,1220.0,1219.7,31.11187718]
[1672739862298,4.30383816,1219.8,1219.7,31.11187718]
[1672739862505,4.30383816,1219.8,1219.7,34.11187718]
[1672739862865,4.30383816,1219.8,1219.7,34.10968577]
[1672739863343,9.30383816,1219.8,1219.7,34.10968577]
[1672739864435,4.30383816,1219.8,1219.7,34.10968577]
[1672739865604,9.30383816,1219.8,1219.7,34.10968577]
[1672739867026,9.30383816,1219.8,1219.7,31.10968577]
[1672739867191,5.0,1219.8,1219.7,31.10968577]
[1672739869972,9.30437179,1219.8,1219.7,31.10968577]
[1672739870179,5.0,1219.8,1219.7,31.10968577]
[1672739873669,5.14990882,1219.9,1219.7,31.10968577]
[1672739873992,5.08390882,1219.9,1219.7,31.10968577]
[1672739874496,5.0,1219.8,1219.7,31.10968577]
[1672739875735,5.0,1219.8,1219.7,21.27149577]
[1672739875736,10.08390882,1219.8,1219.7,21.27149577]
[1672739877311,10.08390882,1219.8,1219.7,11.43335577]
[1672739877772,10.08390882,1219.8,1219.7,21.27183577]
[1672739885355,5.08390882,1219.8,1219.7,21.27183577]
[1672739886230,10.08390882,1219.8,1219.7,21.26870296]
[1672739892945,5.08390882,1219.8,1219.7,21.26870296]
[1672739893475,10.08390882,1219.8,1219.7,21.26870296]
[1672739898206,10.08390882,1219.8,1219.7,11.43022296]
[1672739902134,10.03390882,1219.8,1219.7,11.43022296]
[1672739902396,9.88390882,1219.8,1219.7,11.43022296]
[1672739903393,4.88390882,1219.8,1219.7,11.43022296]
[1672739903812,9.88390882,1219.8,1219.7,1.59759718]
[1672739904184,9.88390882,1219.8,1219.7,1.51869051]
[1672739905002,9.88390882,1219.8,1219.6,44.23763025]
[1672739905212,9.30940961,1219.7,1219.6,44.23763025]
[1672739905439,9.30940961,1219.7,1219.6,47.23763025]
[1672739907205,9.30940961,1219.7,1219.6,51.96165883]
[1672739907939,5.0,1219.7,1219.6,51.96165883]
[1672739909344,9.30933078,1219.7,1219.6,49.93665883]
[1672739909995,4.30933078,1219.7,1219.6,49.93665883]
[1672739910357,4.88390882,1219.7,1219.6,49.93665883]
[1672739910999,15.25079172,1219.7,1219.6,1.60106025]
[1672739911205,15.25079172,1219.7,1219.6,1.52215358]
[1672739911659,9.99476114,1219.7,1219.6,1.52215358]
[1672739912491,19.83324114,1219.7,1219.6,1.52215358]
[1672739912683,23.07479763,1219.7,1219.6,1.52215358]
[1672739913349,29.17304858,1219.7,1219.6,1.52215358]
[1672739913518,39.01152858,1219.7,1219.6,1.52215358]
[1672739913729,41.02952858,1219.7,1219.6,1.52215358]
[1672739915014,50.86800858,1219.7,1219.6,1.52215358]
[1672739919135,45.86800858,1219.7,1219.6,1.52215358]
[1672739919350,50.86800858,1219.7,1219.6,1.52215358]
[1672739922608,85.86800858,1219.7,1219.6,1.52215358]
[1672739925091,93.30756275,1219.7,1219.6,1.52215358]
[1672739925300,93.30756275,1219.7,1219.5,0.00265552]
[1672739925301,10.425,1219.6,1219.5,0.00265552]
[1672739925643,32.07250636,1219.6,1219.5,0.00265552]
[1672739926253,35.82508741,1219.6,1219.5,0.00265552]
[1672739926986,41.90877638,1219.6,1219.5,0.00265552]
[1672739927394,51.74806638,1219.6,1219.5,0.00265552]
[1672739928223,46.24806638,1219.6,1219.5,0.00265552]
[1672739928435,27.80628538,1219.6,1219.5,0.00265552]
[1672739928686,15.87621891,1219.6,1219.5,9.84274552]
[1672739928874,14.21808467,1219.6,1219.5,0.08156219]
[1672739929103,14.83398467,1219.6,1219.5,9.84274552]
[1672739929314,14.83398467,1219.6,1219.5,9.92165219]
[1672739929498,17.33196816,1219.6,1219.5,0.08156219]
[1672739929708,17.33196816,1219.6,1219.5,0.00265552]
[1672739932847,16.71606816,1219.6,1219.5,0.00265552]
[1672739933316,16.94618308,1219.6,1219.5,0.00265552]
[1672739933747,26.78547308,1219.6,1219.5,0.00265552]
[1672739935898,36.62476308,1219.6,1219.5,0.00265552]
[1672739937937,46.46405308,1219.6,1219.5,0.00265552]
[1672739938147,46.23405308,1219.6,1219.5,0.00265552]
[1672739940207,46.23405308,1219.6,1219.5,1.40725642]
[1672739940946,41.23405308,1219.6,1219.5,1.40725642]
[1672739941735,41.16471463,1219.6,1219.5,1.40725642]
[1672739943035,47.2484036,1219.6,1219.5,1.40725642]
[1672739943615,82.2484036,1219.6,1219.5,1.40725642]
[1672739947767,77.2484036,1219.6,1219.5,1.40725642]
[1672739948785,82.2484036,1219.6,1219.5,1.40725642]
[1672739948992,76.16471463,1219.6,1219.5,1.40362465]
[1672739950446,76.39471463,1219.6,1219.5,1.40362465]
[1672739952771,77.01061463,1219.6,1219.5,1.40362465]
[1672739954629,79.02861463,1219.6,1219.5,1.40362465]
[1672739954929,78.79861463,1219.6,1219.5,1.40362465]
[1672739956031,83.95361463,1219.6,1219.5,1.40362465]
[1672739958032,86.47241666,1219.6,1219.5,1.40362465]
[1672739958239,93.47241666,1219.6,1219.5,1.40362465]
[1672739958926,100.59334105,1219.6,1219.5,1.40362465]
[1672739959345,93.47241666,1219.6,1219.5,1.40362465]
[1672739961288,93.87550051,1219.6,1219.5,1.40362465]
[1672739964138,10.425,1219.5,1219.4,0.00253887]
[1672739964344,25.68441763,1219.5,1219.4,0.00253887]
[1672739964611,26.17821966,1219.5,1219.4,0.00253887]
[1672739964822,61.17821966,1219.5,1219.4,0.00253887]
[1672739964992,60.68441763,1219.5,1219.4,0.00253887]
[1672739965565,70.52450763,1219.5,1219.4,0.00253887]
[1672739966995,80.36459763,1219.5,1219.4,0.00253887]
[1672739967673,91.85839966,1219.5,1219.4,0.00253887]
[1672739967830,102.28642405,1219.5,1219.4,0.00253887]
[1672739968042,112.12651405,1219.5,1219.4,0.00253887]
[1672739968249,114.14651405,1219.5,1219.4,0.00253887]
[1672739969109,123.98660405,1219.5,1219.4,0.00253887]
[1672739969508,10.425,1219.4,1219.3,0.00418851]
[1672739969718,33.96684463,1219.4,1219.3,0.00418851]
[1672739969946,34.46064666,1219.4,1219.3,0.00418851]
[1672739970177,44.30154666,1219.4,1219.3,0.00418851]
[1672739971209,54.14244666,1219.4,1219.3,0.00418851]
[1672739972281,63.98334666,1219.4,1219.3,0.00418851]
[1672739975420,98.98334666,1219.4,1219.3,0.00418851]
[1672739977725,93.98334666,1219.4,1219.3,0.00418851]
[1672739978671,98.98334666,1219.4,1219.3,0.00418851]
[1672739985149,88.81834666,1219.4,1219.3,0.00418851]
[1672739985365,88.32454463,1219.4,1219.3,0.00418851]
[1672739988094,53.32454463,1219.4,1219.3,0.00418851]
[1672739988255,37.00391078,1219.4,1219.3,2.12518851]
[1672739988466,22.23801078,1219.4,1219.3,0.00418851]
[1672739989359,32.07891078,1219.4,1219.3,0.00418851]
[1672739991631,41.91981078,1219.4,1219.3,0.00418851]
[1672739993411,32.07891078,1219.4,1219.3,0.00418851]
[1672739994259,32.07891078,1219.4,1219.3,0.00211439]
[1672739995242,41.91981078,1219.4,1219.3,0.00211439]
[1672739995396,32.07891078,1219.4,1219.3,0.00211439]
[1672739995602,22.23801078,1219.4,1219.3,0.00211439]
[1672739996375,32.07891078,1219.4,1219.3,0.00211439]
[1672739997754,41.91981078,1219.4,1219.3,0.00211439]
[1672739999170,16.16959623,1219.4,1219.3,4.14811439]
[1672739999383,10.08044659,1219.4,1219.3,4.14811439]
[1672740000216,10.06742659,1219.4,1219.3,4.14811439]
[1672740002644,19.90832659,1219.4,1219.3,4.14811439]
[1672740002852,19.90832659,1219.4,1219.3,6.15897821]
[1672740003008,19.90832659,1219.4,1219.3,6.23788488]
[1672740003674,10.06742659,1219.4,1219.3,6.23788488]
[1672740003903,4.98698,1219.4,1219.3,25.92130488]
[1672740004479,9.2863892,1219.4,1219.3,35.76301488]
[1672740004688,4.98898,1219.4,1219.3,40.24185411]
[1672740005007,8.6697191,1219.4,1219.3,40.2424221]
[1672740005848,8.6697191,1219.4,1219.3,40.3050121]
[1672740006060,8.6697191,1219.4,1219.3,40.2424221]
[1672740006337,4.98698,1219.4,1219.3,40.2424221]
[1672740006493,4.98698,1219.4,1219.3,30.4007121]
[1672740006930,8.66819317,1219.4,1219.3,30.4007121]
[1672740008108,4.98698,1219.4,1219.3,20.5590021]
[1672740008895,8.6669095,1219.4,1219.3,20.5590021]